Cogmind - Beta 9.2 @@@ ROGUE MODE // 2019.11.17 @ 17:33:17 Player: arsonius Result: Destroyed by IA-8R1(z) with Makeshift Sword Performance ------------- Evolutions (3) 1500 Regions Visited (10) 2000 Robots Destroyed (77) 385 Value Destroyed (2397) 2397 Prototype IDs (28) 560 Alien Tech Used (0) 0 Bonus (-71) -71 TOTAL SCORE: 6771 Bonus ------- Aligned with FarCom 300 Met Imprinter 300 Friendly Fire -671 Cogmind --------- Core Integrity 0/700 Matter 217/300 Energy 71/100 System Corruption 2% Temperature Cool (0) Movement Rolling (105) Ox1 Location -6/Zion Parts ------- > --- POWER (1) -------- (None) > --- PROPULSION (3) --- Armored Wheel Armored Huge Wheel > --- UTILITY (7) ------ Large Storage Unit High-capacity Storage Unit Advanced Visual Processing Unit Advanced Terrain Scan Processor Advanced Targeting Computer Improved Light Armor Plating Experimental Hacking Suite > --- WEAPON (2) ------- Advanced Assault Cannon Chainsword > --- INVENTORY (18) --- Improved Deuterium Engine Flexi-carbon Leg Armored Wheel Armored Wheel Gravmag System Improved Cooling System Advanced Targeting Computer Experimental Targeting Computer Dynamic Insulation System Improved Field Recycling Unit (0) Gauss Cannon Proton Missile Launcher Heavy Rocket Launcher Spear Peak State ------------ > --- POWER ------------ Heavy Deuterium Engine > --- PROPULSION ------- Armored Wheel Armored Huge Wheel > --- UTILITY ---------- Large Storage Unit High-capacity Storage Unit Advanced Visual Processing Unit Advanced Terrain Scan Processor Advanced Targeting Computer Advanced Core Analyzer Experimental Hacking Suite > --- WEAPON ----------- Advanced Assault Cannon Gauss Cannon > --- INVENTORY -------- Improved Deuterium Engine Aluminum Leg Armored Wheel Gravmag System Advanced Heat Sink Improved Light Armor Plating Medium Reactive Plating System Shield System Shield Dynamic Insulation System System Backup Module Improved Field Recycling Unit Advanced Assault Cannon Proton Missile Launcher Heavy Rocket Launcher Chainsword Chainsword Spear [Rating: 57] Favorites ----------- Power Heavy Deuterium Engine Engine Heavy Deuterium Engine Power Core Nuclear Core Propulsion Potential Leg Treads Light Treads Leg Potential Leg Wheel Armored Huge Wheel Hover Unit Gravmag System Utility Large Storage Unit Device System Backup Module Storage Large Storage Unit Processor Advanced Terrain Scan Processor Hackware Experimental Hacking Suite Protection Reflective Plating Weapon Advanced Assault Cannon Energy Gun Precision Shock Rifle Energy Cannon Beam Cannon Ballistic Gun Assault Rifle Ballistic Cannon Advanced Assault Cannon Launcher Mini Grenade Launcher Special Weapon Welding Torch Slashing Weapon Chainsword Build | -11 -10 -10 -10 -9 -8 -7 -7 -7 -7 -6 ------- Run | Scr Mat Min Exi Min Mat Fac Was Fac Low Zio Slots Evolved 6 | . . . . . 4 2 . . . . Power . | . . . . . . . . . . . Propulsion 1 | . . . . . 1 . . . . . Utility 5 | . . . . . 3 2 . . . . Weapon . | . . . . . . . . . . . Parts Attached 157 | 6 14 1 3 4 20 19 2 68 6 14 Power 10 | 1 2 . . 1 . 1 . 5 . . Engine 8 | 1 1 . . 1 . 1 . 4 . . Core 2 | . 1 . . . . . . 1 . . Reactor . | . . . . . . . . . . . Propulsion 24 | 2 6 . 2 . 1 1 . 12 . . Treads 2 | 2 . . . . . . . . . . Leg 10 | . 6 . 2 . 1 1 . . . . Wheel 2 | . . . . . . . . 2 . . Hover 10 | . . . . . . . . 10 . . Flight . | . . . . . . . . . . . Utility 76 | 1 3 1 1 . 10 11 1 38 3 7 Device 42 | . 1 . . . 5 6 . 27 2 1 Storage 10 | 1 2 1 1 . 1 2 . 2 . . Processor 7 | . . . . . 1 . . 4 1 1 Hackware 2 | . . . . . 1 . . . . 1 Protection 15 | . . . . . 2 3 1 5 . 4 Artifact . | . . . . . . . . . . . Weapon 47 | 2 3 . . 3 9 6 1 13 3 7 Energy Gun 7 | 1 . . . . 1 3 1 1 . . Energy Cannon 4 | . 1 . . . 3 . . . . . Ballistic Gun 3 | 1 1 . . . . . . . . 1 Ballistic Cannon 10 | . . . . . 1 1 . 6 1 1 Launcher 12 | . . . . 2 3 2 . 2 1 2 Special Weapon 2 | . 1 . . 1 . . . . . . Impact Weapon . | . . . . . . . . . . . Slashing Weapon 9 | . . . . . 1 . . 4 1 3 Piercing Weapon . | . . . . . . . . . . . Special Melee Weapon . | . . . . . . . . . . . Unidentified Prototypes 5 | . . . . . 2 1 . 1 . 1 Parts Lost 19 | . 5 . . . 3 1 6 . 1 3 Power 4 | . 1 . . . . 1 1 . . 1 Propulsion 2 | . 2 . . . . . . . . . Utility 6 | . . . . . 1 . 4 . 1 . Weapon 7 | . 2 . . . 2 . 1 . . 2 Highest Loss Streak 5 | . 3 . . . 2 1 5 . 1 2 Average Slot Usage (%) 91 | . 96 100 100 100 99 88 60 85 91 91 Engine 7 | . 11 14 14 14 9 6 6 4 7 6 Leg 11 | . 12 28 28 28 27 23 13 . . . Wheel 4 | . . . . . . . . 4 15 15 Hover 3 | . . . . . . . . 12 . . Device 10 | . 4 9 . . 8 8 9 18 14 1 Storage 15 | . 21 19 28 28 18 17 10 8 15 15 Processor 12 | . . . . . 8 7 6 14 22 27 Hackware 1 | . . . . . 5 . . . . 6 Protection 2 | . . . . . 2 8 3 3 . 1 Energy Gun 1 | . 5 . . . . 3 3 . . . Energy Cannon 3 | . . 14 14 14 7 1 . . . . Ballistic Gun 1 | . 17 . . . . . . . . . Ballistic Cannon 6 | . . . . . 6 5 . 7 12 10 Launcher 1 | . . . . 11 3 4 4 . . . Special Weapon 1 | . 3 14 14 2 . . . . . . Slashing Weapon 1 | . . . . . . . . 4 2 2 Naked Turns 9 | . . . . . . . 9 . . . Heaviest Build 125 | 13 33 33 41 46 57 125 115 94 79 89 Greatest Support 78 | 40 40 20 60 60 73 78 78 40 40 40 Greatest Overweight (x) 28 | . 3 1 1 . . 1 28 9 1 2 Average Overweight (x) . | . . 1 . . . . 1 1 1 1 Largest Inventory Capacity 42 | 6 14 14 16 16 16 42 30 18 18 18 Average Capacity 16 | 5 11 11 14 16 16 26 24 12 18 18 Most Carried 29 | 4 10 14 16 16 16 29 29 18 18 18 Average Carried 15 | 2 6 11 14 15 15 24 24 11 17 17 Final Capacity 30 | 6 10 14 16 16 16 30 4 18 18 18 Final Carried 28 | 2 10 14 16 16 16 28 4 18 18 14 Class Distribution -------------------- 59% | Mutant 15% | Assassin 10% | Hauler-Mutant 5% | Skirmisher 5% | Hauler-Skirmisher Dominant Class ---------------- Mutant | -10/Materials Mutant | -10/Mines Mutant | -10/Exiles Mutant | -9/Mines Mutant | -8/Materials Hauler-Mutant | -7/Factory Hauler-Mutant | -7/Waste Assassin | -7/Factory Mutant | -7/Lower Caves Mutant | -6/Zion Resources | -11 -10 -10 -10 -9 -8 -7 -7 -7 -7 -6 ----------- Run | Scr Mat Min Exi Min Mat Fac Was Fac Low Zio Matter Collected 2754 | 214 359 30 270 51 139 440 . 704 346 201 Remotely . | . . . . . . . . . . . Salvage Created 2141 | . 375 . . 41 230 241 . 781 216 257 Parts 128 | . 18 . . 3 18 16 . 42 8 23 Haulers Intercepted . | . . . . . . . . . . . Recyclers Shooed 5 | . 2 . . . . . . 3 . . Parts Field Recycled 57 | . . . . . . . . 55 . 2 Retrieved Matter 893 | . . . . . . . . 881 . 12 Parts Self-Destructed 11 | . . . . . . . . . 7 4 Prevented 2 | . . . . . . . . . 2 . Kills | -11 -10 -10 -10 -9 -8 -7 -7 -7 -7 -6 ------- Run | Scr Mat Min Exi Min Mat Fac Was Fac Low Zio Combat Hostiles Destroyed 39 | . 8 . . 1 4 5 . 9 7 5 Melee 3 | . . . . . . . . 3 . . Guns 8 | . 8 . . . . . . . . . Cannons 13 | . . . . . 3 2 . 4 2 2 AOE 15 | . . . . 1 1 3 . 2 5 3 Classes Destroyed 17 | . 2 . . 1 4 2 . 4 . 4 Worker 7 | . . . . . 2 . . 5 . . Builder 1 | . . . . . 1 . . . . . Tunneler 3 | . . . . . . . . 3 . . Recycler 6 | . . . . . 1 . . 5 . . Mechanic 1 | . . . . . . . . 1 . . Operator 2 | . 1 . . . . . . 1 . . Watcher 2 | . . . . . . 1 . 1 . . Swarmer 1 | . . . . . . . . 1 . . Grunt 17 | . 8 . . . 2 . . 1 6 . Brawler 2 | . . . . . . . . 2 . . Duelist 2 | . . . . 1 1 . . . . . Sentry 3 | . . . . . 1 1 . . 1 . Programmer 9 | . . . . . . 4 . 5 . . Zionite 11 | . . . . . . . . . . 11 Tinkerer 3 | . . . . . . . . . . 3 Thug 2 | . . . . . . 2 . . . . Guerrilla 1 | . . . . . . . . . . 1 Mutant 4 | . . . . . . . . . . 4 Best Kill Streak 7 | . 2 . . 1 4 2 . 3 3 7 Combat Bots Only 5 | . 2 . . 1 3 2 . 2 3 5 Max Kills in Single Turn 2 | . 1 . . 1 2 2 . 1 2 2 Gunslinging . | . . . . . . . . . . . Exploded 2 | . . . . 1 1 1 . 1 2 1 Melee 1 | . . . . . . . . 1 . . Uniques/NPCs Destroyed . | . . . . . . . . . . . Combat | -11 -10 -10 -10 -9 -8 -7 -7 -7 -7 -6 -------- Run | Scr Mat Min Exi Min Mat Fac Was Fac Low Zio Damage Taken 4692 | . 797 . . . 427 449 532 973 454 1060 Core 948 | . 90 . . . 135 76 84 261 39 263 Absorbed by Shields 115 | . . . . . . . . 88 27 . Core Remaining (%) 79 | 100 . . . 64 75 . . . . . Volleys Fired 208 | . 66 . . 1 17 18 10 46 21 29 Largest 2 | . 2 . . 1 2 2 1 2 2 2 Hottest 128 | . 80 . . 33 108 128 80 96 96 72 Shots Fired 295 | . 116 . . 1 22 20 10 56 36 34 Gun 133 | . 102 . . . . 2 2 14 . 13 Cannon 100 | . 3 . . . 15 8 . 33 34 7 Launcher 51 | . . . . 1 7 10 8 9 2 14 Special 11 | . 11 . . . . . . . . . Kinetic 189 | . 86 . . . 10 6 . 33 34 20 Thermal 23 | . 14 . . . 5 2 2 . . . Explosive 51 | . . . . 1 7 10 8 9 2 14 Electromagnetic 32 | . 16 . . . . 2 . 14 . . Robot Hit Streak 21 | . 9 . . . 6 6 7 21 8 11 Robot Miss Streak 4 | . 4 . . . 1 2 3 2 1 4 Penetration Max 1 | . . . . . 1 . . . . . Secondary Targets . | . . . . . . . . . . . Shots Hit Robots 230 | . 78 . . . 11 10 7 62 26 36 Core Hits 135 | . 19 . . 1 12 17 1 34 12 39 Critical Hits 6 | . . . . . . . . 2 1 3 Critical Kills 2 | . . . . . . . . 2 . . Critical Parts Destroyed 4 | . . . . . . . . . 1 3 Melee Attacks 45 | . . . . . . . . 21 3 21 Impact . | . . . . . . . . . . . Slashing 45 | . . . . . . . . 21 3 21 Piercing . | . . . . . . . . . . . Sneak Attacks 8 | . . . . . . . . 8 . . Combat Hostiles . | . . . . . . . . . . . Follow-up Attacks . | . . . . . . . . . . . Damage Inflicted 9799 | . 1001 . . 39 547 966 607 3446 957 2236 Guns 1455 | . 955 . . . . . 67 266 . 167 Cannons 1722 | . 35 . . . 241 123 . 643 595 85 Explosions 4595 | . . . . 39 306 843 540 1164 331 1372 Melee 1989 | . . . . . . . . 1346 31 612 Ramming 27 | . . . . . . . . 27 . . Kinetic 2514 | . 762 . . . 171 91 . 643 595 252 Thermal 1251 | . 46 . . . 70 236 67 832 . . Explosive 3521 | . . . . 39 306 601 540 332 331 1372 Electromagnetic 497 | . 193 . . . . 38 . 266 . . Impact . | . . . . . . . . . . . Slashing 1989 | . . . . . . . . 1346 31 612 Piercing . | . . . . . . . . . . . Highest Corruption 18 | . 1 1 1 1 8 2 16 18 8 2 Average Corruption 6 | . 1 1 1 1 8 1 10 12 3 1 Corruption Purged 21 | . . . . . . . . 13 8 . Effects 213 | . 5 3 3 1 11 3 9 155 22 1 Message Errors 38 | . 1 1 . . 4 1 1 26 4 . Matter Fused 34 | . . . . . 3 . . 24 7 . Heat Flow Errors 22 | . . . . . 1 . . 16 4 1 Energy Discharges 18 | . 1 1 1 . 1 . 1 11 2 . Parts Rejected 3 | . . . . . . . 2 . 1 . Data Loss (minor) 30 | . 1 1 2 1 2 2 1 18 2 . Data Loss (major) 2 | . . . . . . . . 2 . . Misfires 7 | . . . . . . . . 7 . . Alerts 3 | . . . . . . . 1 2 . . Misdirections 35 | . . . . . . . 1 34 . . Targeting Errors 19 | . 2 . . . . . 2 13 2 . Weapon Failures 2 | . . . . . . . . 2 . . Overload Shots . | . . . . . . . . . . . Overflow Damage 967 | . . . . . 10 42 . 791 45 79 Projectiles 27 | . . . . . . . . 3 24 . Explosions 534 | . . . . . 10 42 . 390 21 71 Melee 406 | . . . . . . . . 398 . 8 Knockbacks 11 | . . . . . . . . 5 4 2 Impact . | . . . . . . . . . . . Kinetic 10 | . . . . . . . . 5 3 2 Secondary 1 | . . . . . . . . . 1 . Self-Inflicted Damage 522 | . . . . . . 147 69 306 . . Shots 12 | . . . . . . 2 5 5 . . Rammed 5 | . . . . . . . . 5 . . Targets Rammed 5 | . . . . . . . . 5 . . Kicked . | . . . . . . . . . . . Crushed . | . . . . . . . . . . . Highest Temperature 284 | . 81 . . . 227 51 56 284 248 231 Average Temperature 65 | . 24 . . . 113 25 28 72 84 39 Received Heat Transfer 1001 | . 408 . . . 63 57 . 99 171 203 Siege Activations . | . . . . . . . . . . . Robots Corrupted . | . . . . . . . . . . . Combat Hostiles . | . . . . . . . . . . . Parts Fried 2 | . 1 . . . . . . 1 . . Impact Corruptions . | . . . . . . . . . . . Robots Melted . | . . . . . . . . . . . Combat Hostiles . | . . . . . . . . . . . Parts Melted . | . . . . . . . . . . . Heat Transferred 1222 | . 174 . . . 148 200 150 550 . . Parts Sabotaged . | . . . . . . . . . . . Parts Stolen . | . . . . . . . . . . . Parts Stripped . | . . . . . . . . . . . Power Chain Reactions 4 | . . . . . . 1 . 3 . . Missiles Intercepted . | . . . . . . . . . . . Alert | -11 -10 -10 -10 -9 -8 -7 -7 -7 -7 -6 ------- Run | Scr Mat Min Exi Min Mat Fac Was Fac Low Zio Peak Influence 254 | . 104 40 . 30 119 147 98 254 . . Average Influence 53 | . 38 40 . 17 40 37 64 79 . . Maximum Alert Level 1 | . . . . . . . . 1 . . Low Security (%) 98 | 100 100 100 . 100 100 100 100 95 . . Level 1 1 | . . . . . . . . 4 . . Level 2 . | . . . . . . . . . . . Level 3 . | . . . . . . . . . . . Level 4 . | . . . . . . . . . . . Level 5 . | . . . . . . . . . . . High Security . | . . . . . . . . . . . Max Security . | . . . . . . . . . . . Squads Dispatched 21 | . 3 . . . 2 5 . 11 . . Investigation 6 | . 1 . . . 1 1 . 3 . . Extermination 8 | . . . . . . 3 . 5 . . Reinforcement 7 | . 2 . . . 1 1 . 3 . . Assault . | . . . . . . . . . . . Garrison . | . . . . . . . . . . . Intercept . | . . . . . . . . . . . Construction Impeded 2 | . . . . . . 1 . 1 . . Haulers Reinforced . | . . . . . . . . . . . Stealth | -11 -10 -10 -10 -9 -8 -7 -7 -7 -7 -6 --------- Run | Scr Mat Min Exi Min Mat Fac Was Fac Low Zio Distress Signals 3 | . 1 . . . . 2 . . . . Communications Jammed . | . . . . . . . . . . . Distress Signals . | . . . . . . . . . . . Times Spotted 109 | . 23 . . 3 8 10 6 18 16 25 Peak Tracking Total 11 | . 4 . . 3 2 4 6 4 4 11 Tactical Retreats 18 | . 1 . . 1 . 1 . 3 6 6 Traps | -11 -10 -10 -10 -9 -8 -7 -7 -7 -7 -6 ------- Run | Scr Mat Min Exi Min Mat Fac Was Fac Low Zio Traps Triggered 8 | . . . . . . 3 . 5 . . Indirectly 1 | . . . . . . 1 . . . . Trap Hack Attempts . | . . . . . . . . . . . Triggered . | . . . . . . . . . . . Disarmed . | . . . . . . . . . . . Reprogrammed . | . . . . . . . . . . . Reused 2 | . . . . . . 2 . . . . Traps Extracted . | . . . . . . . . . . . Installed 3 | . . . . . . 3 . . . . Triggered 4 | . . . . . . 2 . . 2 . Machines | -11 -10 -10 -10 -9 -8 -7 -7 -7 -7 -6 ---------- Run | Scr Mat Min Exi Min Mat Fac Was Fac Low Zio Machines Disabled 21 | . . . . . 2 5 . 11 . 3 Max in Single Turn 4 | . . . . . 1 2 . 4 . 2 Machines Sabotaged . | . . . . . . . . . . . Garrisons Compromised . | . . . . . . . . . . . Overloaded Fab Kills . | . . . . . . . . . . . Fab Network Shutdowns . | . . . . . . . . . . . Hacking | -11 -10 -10 -10 -9 -8 -7 -7 -7 -7 -6 --------- Run | Scr Mat Min Exi Min Mat Fac Was Fac Low Zio Machines Accessed 24 | . 2 . 2 . 5 1 . 12 1 1 Terminals 16 | . 2 . . . 4 1 . 9 . . Fabricators . | . . . . . . . . . . . Repair Stations 1 | . . . . . . . . 1 . . Recycling Units 1 | . . . . . . . . 1 . . Scanalyzers 2 | . . . . . 1 . . 1 . . Garrison Access . | . . . . . . . . . . . Total Hacks 83 | . 5 . 24 . 16 2 . 30 1 5 Successful 53 | . 2 . 24 . 9 . . 12 1 5 Failed 30 | . 3 . . . 7 2 . 18 . . Catastrophic 7 | . 2 . . . . 1 . 4 . . Database Lockouts . | . . . . . . . . . . . Manual 15 | . 2 . 1 . 8 1 . 3 . . Terminals 41 | . 5 . . . 12 2 . 22 . . Fabricators . | . . . . . . . . . . . Repair Stations 3 | . . . . . . . . 3 . . Recycling Units 4 | . . . . . . . . 4 . . Scanalyzers 5 | . . . . . 4 . . 1 . . Garrison Access . | . . . . . . . . . . . Terminal Hacks 42 | . 2 . 24 . 3 . . 7 1 5 Record 23 | . . . 23 . . . . . . . Part Schematic 5 | . . . . . . . . . . 5 Robot Analysis 1 | . 1 . . . . . . . . . Open Door 1 | . . . . . . . . . 1 . Level Access Points 1 | . . . . . 1 . . . . . Branch Access Points 1 | . . . . . . . . 1 . . Terminal Index 2 | . . . . . 1 . . 1 . . Locate Traps 6 | . 1 . . . . . . 5 . . Registered Components 1 | . . . . . 1 . . . . . EX-Prototype ID Bank 1 | . . . 1 . . . . . . . Fabricator Hacks . | . . . . . . . . . . . Repair Station Hacks 2 | . . . . . . . . 2 . . Scan Component 1 | . . . . . . . . 1 . . Repair 1 | . . . . . . . . 1 . . Recycling Unit Hacks 3 | . . . . . . . . 3 . . Process 1 | . . . . . . . . 1 . . Retrieve Matter 2 | . . . . . . . . 2 . . Scanalyzer 4 | . . . . . 4 . . . . . Insert Component 2 | . . . . . 2 . . . . . Analyze 2 | . . . . . 2 . . . . . Garrison Access Hacks . | . . . . . . . . . . . Unauthorized Hacks 5 | . . . . . 4 . . 1 . . Terminals 2 | . . . . . 2 . . . . . Assimilate 2 | . . . . . 2 . . . . . Fabricators . | . . . . . . . . . . . Repair Stations . | . . . . . . . . . . . Recycling Units . | . . . . . . . . . . . Scanalyzers . | . . . . . . . . . . . Garrison Access . | . . . . . . . . . . . Data Cores Recovered 1 | . . . . . . . . 1 . . Used 1 | . . . . . . . . 1 . . Hacking Detections 19 | . 2 . . . 5 1 . 11 . . Full Trace Events 7 | . 2 . . . 1 1 . 3 . . Feedback Events 1 | . 1 . . . . . . . . . Corruption 1 | . 1 . . . . . . . . . Feedback Blocked . | . . . . . . . . . . . Robot Schematics Acquired . | . . . . . . . . . . . Robots Built . | . . . . . . . . . . . Matter . | . . . . . . . . . . . Time . | . . . . . . . . . . . Total Robot Build Rating . | . . . . . . . . . . . Part Schematics Acquired 7 | . . . . . 2 . . . . 5 Parts Built . | . . . . . . . . . . . Matter . | . . . . . . . . . . . Time . | . . . . . . . . . . . Total Part Build Rating . | . . . . . . . . . . . Parts Repaired 1 | . . . . . . . . 1 . . Time 44 | . . . . . . . . 44 . . Parts Recycled . | . . . . . . . . . . . Recycled Matter 15 | . . . . . . . . 15 . . Retrieved Matter 15 | . . . . . . . . 15 . . Retrieved Components . | . . . . . . . . . . . Parts Scanalyzed 2 | . . . . . 2 . . . . . Part Schematics Acquired 2 | . . . . . 2 . . . . . Parts Damaged . | . . . . . . . . . . . Bothacking | -11 -10 -10 -10 -9 -8 -7 -7 -7 -7 -6 ------------ Run | Scr Mat Min Exi Min Mat Fac Was Fac Low Zio Used RIF Installer . | . . . . . . . . . . . Robots Hacked . | . . . . . . . . . . . Non-combat . | . . . . . . . . . . . Combat . | . . . . . . . . . . . Robot Hacks Applied . | . . . . . . . . . . . Relay Couplers Released . | . . . . . . . . . . . Robots Rewired . | . . . . . . . . . . . Allies Hacked . | . . . . . . . . . . . Hacks Repelled . | . . . . . . . . . . . Allies | -11 -10 -10 -10 -9 -8 -7 -7 -7 -7 -6 -------- Run | Scr Mat Min Exi Min Mat Fac Was Fac Low Zio Total Allies 12 | . . 5 . . 1 3 . . . 3 Largest Group 5 | . . 5 5 3 1 3 . . . 3 Highest-Rated Group 93 | . . 85 85 40 10 93 . . . 79 Highest-Rated Ally 37 | . . 31 31 16 10 31 . . . 37 Total Orders 10 | . . . . . 10 . . . . . STAY 1 | . . . . . 1 . . . . . GOTO 4 | . . . . . 4 . . . . . FOLLOW 5 | . . . . . 5 . . . . . Ally Attacks 9 | . . . . 6 . 3 . . . . Total Damage 76 | . . . . 57 . 19 . . . . Kills . | . . . . . . . . . . . Allies Corrupted . | . . . . . . . . . . . Allies Melted . | . . . . . . . . . . . Intel | -11 -10 -10 -10 -9 -8 -7 -7 -7 -7 -6 ------- Run | Scr Mat Min Exi Min Mat Fac Was Fac Low Zio Robot Analysis Total 1 | . 1 . . . . . . . . . Derelict Logs Recovered 7 | . . 3 . . . . . . 2 2 Drone Launches . | . . . . . . . . . . . Drone Recoveries . | . . . . . . . . . . . Exploration | -11 -10 -10 -10 -9 -8 -7 -7 -7 -7 -6 ------------- Run | Scr Mat Min Exi Min Mat Fac Was Fac Low Zio Turns Passed 10744 | 56 702 280 657 523 1218 1589 186 3044 1470 1019 Spaces Moved 7981 | 34 289 177 526 465 823 1115 121 2332 1302 797 Core 56 | 9 . . . . . . 32 15 . . Treads 178 | 25 153 . . . . . . . . . Legs 3331 | . 136 177 526 465 823 1115 89 . . . Wheels 3129 | . . . . . . . . 1030 1302 797 Hover 1287 | . . . . . . . . 1287 . . Flight . | . . . . . . . . . . . Fastest Speed 50 | 50 150 150 90 90 100 100 50 52 105 105 Average Speed 109 | 130 156 150 120 90 100 118 132 102 105 106 Slowest Speed 1450 | 160 210 150 150 90 100 136 1450 500 105 115 Overloaded Moves 16 | . . . . . . . 16 . . . Propulsion Burnouts . | . . . . . . . . . . . Robots Hopped . | . . . . . . . . . . . Cave-ins Triggered 1 | . . . . . 1 . . . . . Exploration Rate (%) 53 | 3 50 34 74 55 30 18 88 45 99 90 Regions Visited 10 Branch Regions 5 Pre-discovered Areas 4 | . . 1 1 1 . . . . . 1 Known Exits Taken 3 | . . 1 . . 1 . . 1 . . Unknown Exits Taken 5 | 1 1 . 1 1 . . . . 1 . Scrap Searched 6 | . . 1 . 1 . . . . 2 2 Spaces Dug 39 | . . . . . 31 8 . . . . Terrain Destroyed 399 | . . . . 14 60 105 43 129 36 12 Melee . | . . . . . . . . . . . Projectile 15 | . . . . . 4 1 . 2 8 . AOE 384 | . . . . 14 56 104 43 127 28 12 Actions | -11 -10 -10 -10 -9 -8 -7 -7 -7 -7 -6 --------- Run | Scr Mat Min Exi Min Mat Fac Was Fac Low Zio Total 9647 | 44 425 192 549 568 1193 1368 136 2907 1364 901 Wait 999 | . 25 7 6 94 311 162 . 350 25 19 Move 7972 | 33 288 176 525 464 822 1115 120 2331 1301 797 Hop . | . . . . . . . . . . . Pick Up 145 | 5 20 6 8 2 12 31 1 46 5 9 Fast Attach 39 | 3 2 . . . 4 1 . 26 . 3 Attach 48 | 3 7 . . . 6 9 1 14 3 5 Detach 7 | . 1 . . . 1 2 . 2 . 1 Swap 72 | . 5 1 3 4 11 9 1 28 3 7 Drop 104 | . 11 2 7 3 9 18 3 38 3 10 Fire 208 | . 66 . . 1 17 18 10 46 21 29 Melee 45 | . . . . . . . . 21 3 21 Ram 5 | . . . . . . . . 5 . . Kick . | . . . . . . . . . . . Crush . | . . . . . . . . . . . Escape Stasis . | . . . . . . . . . . . Rewire . | . . . . . . . . . . . Trap 3 | . . . . . . 3 . . . . Miscellaneous . | . . . . . . . . . . . Route ------- -11/Scrapyard -10/Materials (discovered 2 exits: [*Mat] / [*Min]) -10/Mines -10/Exiles (discovered 2 exits: [*Min x2]) -9/Mines (discovered 2 exits: *Mat x2) -8/Materials (discovered 4 exits: *Fac x3 / Sto) -7/Factory -7/Waste -7/Factory (discovered 3 exits: [*Fac] / *Low x2) -7/Lower Caves (discovered 2 exits: [*Low] / *Zio) -6/Zion (discovered 1 exit: [*Pro]) History --------- Turn | Location | Event 7 | -11/Scrapyard | Discovered new exit (range 16) 57 | -11/Scrapyard | Entered Materials 315 | -10/Materials | Build established: Mutant 507 | -10/Materials | Discovered new exit (range 3) 607 | -10/Materials | Lost 3 parts (1p1n1w) 752 | -10/Materials | Discovered new exit (range 6) 759 | -10/Materials | Entered Mines 811 | -10/Mines | Received a Rocket Launcher from a helpful Derelict 836 | -10/Mines | Learned location of Zion (-6) 872 | -10/Mines | Assisted by bots powering up and referring to "LRC-V3" 893 | -10/Mines | Identified exit to Exiles 936 | -10/Mines | Found a hidden stash of uninstalled traps 1024 | -10/Mines | Deemed a non-threat by the Exiles lab entrance 1039 | -10/Mines | Entered Exiles 1039 | -10/Exiles | Accompanied by 5 allies 1062 | -10/Exiles | Discovered new exit (range 15) 1069 | -10/Exiles | Led the pair of lost Derelicts to a safe place 1110 | -10/Exiles | Met 8R-AWN 1141 | -10/Exiles | Met EX-HEX 1191 | -10/Exiles | Met EX-BIN 1261 | -10/Exiles | Met EX-DEC 1393 | -10/Exiles | Aligned with FarCom system 1395 | -10/Exiles | Given EX-Vault access code 1431 | -10/Exiles | Opened EX-Vault 1444 | -10/Exiles | Found Potential Leg 1447 | -10/Exiles | Found Potential Leg 1470 | -10/Exiles | Warned to stay clear of 0b10 Research branches 1680 | -10/Exiles | Discovered new exit (range 12) 1696 | -10/Exiles | Left Exiles lab with Potential Leg 1696 | -10/Exiles | Entered Mines 1696 | -9/Mines | Accompanied by 3 allies 1760 | -9/Mines | Learned location of Storage (-8) 1815 | -9/Mines | A weapon hastily lodged in a ceiling crevice suddenly fell to the ground 1853 | -9/Mines | Discovered new exit (range 15) 1987 | -9/Mines | Discovered new exit (range 8) 2219 | -9/Mines | Entered Materials 2219 | -8/Materials | Evolved 4 slots: Propulsion x1, Utility x3 2220 | -8/Materials | Identified exit to Storage 2290 | -8/Materials | Identified exit to Factory 3057 | -8/Materials | Crushed by falling debris 3437 | -8/Materials | Entered Factory 3437 | -7/Factory | Evolved 2 slots: Utility x2 3534 | -7/Factory | Allied Derelicts emerged from ambush trap array 3882 | -7/Factory | Build established: Hauler-Mutant 4360 | -7/Factory | Build established: Hauler-Skirmisher 5026 | -7/Factory | Sucked down chute 5026 | -7/Factory | Entered Waste 5041 | -7/Waste | EMP discharged 5062 | -7/Waste | Spotted C-40 Crusher 5062 | -7/Waste | Spotted C-40 Crusher 5070 | -7/Waste | Spotted C-40 Crusher 5097 | -7/Waste | Spotted C-40 Crusher 5110 | -7/Waste | Crushed by Compactor (1 part destroyed, 1 dropped) 5112 | -7/Waste | Spotted C-40 Crusher 5117 | -7/Waste | Crushed by Compactor (1 part destroyed) 5118 | -7/Waste | Crushed by Compactor (1 part destroyed) 5123 | -7/Waste | Crushed by Compactor (1 part destroyed, 1 dropped) 5136 | -7/Waste | Spotted C-40 Crusher 5141 | -7/Waste | EMP discharged 5141 | -7/Waste | System corruption reached 10% 5154 | -7/Waste | Lost 5 parts (4u1w) 5183 | -7/Waste | Crushed by Compactor (0 parts destroyed, 1 dropped) 5203 | -7/Waste | Crushed by Compactor (1 part destroyed, 1 dropped) 5207 | -7/Waste | Discovered new exit (range 10) 5212 | -7/Waste | Entered Factory 5556 | -7/Factory | Found Powered Armor 6444 | -7/Factory | Repaired Powered Armor? 6539 | -7/Factory | Build established: Mutant 6927 | -7/Factory | Build established: Assassin 6954 | -7/Factory | Identified exit to Lower Caves 7421 | -7/Factory | Core integrity fell below 50% 7587 | -7/Factory | Discovered new exit (range 15) 8256 | -7/Factory | Entered Lower Caves 8288 | -7/Lower Caves | Learned Factory interactive machine intel 8742 | -7/Lower Caves | Attracted the attention of an 0b10 checkpoint 8939 | -7/Lower Caves | Learned 12 Factory zone layouts 9034 | -7/Lower Caves | A Derelict revealed a hidden shortcut to a safe place 9042 | -7/Lower Caves | Build established: Mutant 9326 | -7/Lower Caves | Discovered new exit (range 11) 9726 | -7/Lower Caves | Entered Zion 9810 | -6/Zion | Found Prototype Hackware 9810 | -6/Zion | Identified Exp. Hacking Suite 9815 | -6/Zion | Found Prototype Processor 9850 | -6/Zion | Given A8's code to call for help 9862 | -6/Zion | Discovered new exit (range 11) 10048 | -6/Zion | Learned location of 1 exit from Factory 10134 | -6/Zion | Learned Factory interactive machine intel 10188 | -6/Zion | Learned Factory garrison access intel 10305 | -6/Zion | Visited the Megawrench Repair Shop 10305 | -6/Zion | Megawrench repaired 8 parts 10418 | -6/Zion | Gained Derelict followers 10492 | -6/Zion | Rebuked by Imprinter 10509 | -6/Zion | Attempted to imprint without authorization 10509 | -6/Zion | Attacked by Zionites 10558 | -6/Zion | Core integrity fell below 20% 10745 | -6/Zion | Destroyed by IA-8R1(z) with Makeshift Sword Last Messages --------------- 10708_ IA-8R1(z) pulls a Mak. Laser out of the Twisted Machinery. 10708_ EQ-XZN(z) destroyed. 10714_ Med. Reactive Plating severed. 10721_ Acquired Med. Reactive Plating. 10724_ Med. Reactive Plating severed. 10725_ Destroyed Mak. Leg. 10732_ IA-8R1(z) heat short circuits Mak. Power Source. 10732_ Chainsword destroyed. 10732_ Hvy. Deuterium Engine destroyed. 10733_ M8-F98(z) pulls a Mak. Laser out of the Twisted Machinery. 10736_ 5H-UD4(z) destroyed. 10738_ IA-8R1(z) heat short circuits Mak. Leg. 10738_ Acquired 19 matter. 10739_ IA-8R1(z) heat short circuits Mak. Laser. 10739_ M8-F98(z) destroyed. 10740_ IA-8R1(z) pulls a Unknown Slashing Weapon out of the Twisted Machinery. 10742_ IA-8R1(z) heat spikes uncontrollably. 10742_ IA-8R1(z) overheating. 10744_ IA-8R1(z) suffers critical hit. 10744_ Destroyed Mak. Leg. Map ----- +----------------------------------------------------+ | ???????????????# "###"#""" """" """ """""" | | ??????????????## """""""""" """" """ """"#" | | ??????????????" """" "" """ " """" | | ??????????????" """"" # # "#" | | ??????????????# """"" """" ## ## """# | | ????????????#"""""""""" """" | | ???????????#"###"""""#" """ | | ???????????#???#"#""#"" """"" | | ???????????????#######" """""" | | ????????????????????#""" """"#" "" | | ????????????????????##"" """""" """"" | | ?????????????????????#"" "#" #""""" | | ?????????????????????#" """ """#""" | | ???????????????????#""" "" #"####"" | | ???????????????????##"" """ """##"""" | | ????????????????????##"" ""#""z """#"#"## | | ?????????????????????##"""""""""" ""##?###? | | ??????????????????##?####"""" """#????? | | ??????????????????#"##"""" """#????? | | ??????????????????#"""""#" """#????? | | ??????????????????##" """" "" ""#????? | | ????????????####??#"" """ """ "##???? | | ?????????####""####"" "" """ ""#???? | | ?????????#"""""#"#""" =" """ """#???? | | ###########"""""""""" %=[ " """##???? | | """"""" #" " "" *@" " """#????? | | """"""" # [ z" """#????? | | ## !%= #"##????? | | """ ## " [ #""?????? | | """" ! *"""" z"""#????? | | """" = /=[""""" " """#????? | | """" = ""#"""" """"" """#????? | | """ ###" *!=[ #"#""" """"" ""##????? | | ###" == #"""" ##"" """##???? | | """"""" #"#" ###"" ""#""" """"#???# | | """"""" #""" ##"" ""#"""" """##??## | | #########" " ##"" ""#"""" " ""#??#! | | ????#####""# ##"" z""" "###### | | ???## " #### # #"" ""#""## | | ???# # ###" """""#" | | ???# #"#?#"""" """"""" | | ???# #"#?#""""" "" """ | | ???## #### #"##""""""""""s """" | | ????# #??######"##"""""" "" """#" | | ##### ########?#?##" "" """"" | | "" """"#??#"" """"" | | #### ######??""#"" ""#""###""""" | | " " #??""""" """""""""""""" | | " " #??###"" """ """"""""""" "" | | """ " #????#"" """#" """#"""""" " | +----------------------------------------------------+ Best States ------------- Heat Dissipation 61 Energy Generation 18 Energy Capacity 310 Matter Stores 300 Matter Capacity 300 Sight Range 20 Terrain Scan Range 20 Terrain Scan Density 210 EM Shielding 2 Armor Coverage 400 Resistance: KI 30 Resistance: TH 10 Resistance: EX 25 Utility Shielding 66 Evasion (%) 54 Targeting Accuracy 8 Target Analysis 5 Core Analysis 10 Recoil Reduction 2 Offensive Hacking 16 Item Schematics ----------------- Imp. Flight Unit | -8/Materials | Scanalyzed Humpback | -8/Materials | Scanalyzed Riot Gun | -6/Zion | Free Hvy. Riot Gun | -6/Zion | Free Battle Rifle | -6/Zion | Free Flamer | -6/Zion | Free Ripper | -6/Zion | Free Robot Schematics ------------------ None Fabricated ------------ Nothing Alien Tech Used ----------------- None Achievements -------------- None Challenges ------------ None Game ------ Seed ArcSigixDoomcannon Manual? 0 Play Time 03:58:29 Cumulative 66.7 hours Start 2019.11.13 @ 15:59:47 End 2019.11.17 @ 17:33:17 Sessions 5 Manual Loads 0 Difficulty Rogue Special Mode None Game No. 21 Rogue 21 Adventurer 0 Explorer 0 Win Type - Total 0 Types 0/0/0/0/0/0/0 Lore% 36 Gallery% 54 Achievement% 33 Wizard Run 0 Options --------- ASCII 1 Keyboard 0 Movement Numpad Keybinds 0 Fullscreen 1 Font 12/Smallcaps Map View 83x54 Tactical HUD 1 Map Filters NONE Filters NONE Steam 1 RUN: 5107fbf9-db80-4b1c-a637-c81a269876cd